bitfinex/quotes_ETHUSD_20251118
["timestamp","ask_amount","ask_price","bid_price","bid_amount"]
[1763487056365,0.002,3132.9,3132.2,0.32]
[1763487056366,0.002,3132.9,3132.8,0.405504]
[1763487056566,1.1482,3132.9,3132.8,0.405504]
[1763487057121,1.1482,3132.9,3132.1,0.90316862]
[1763487057336,0.4706,3132.8,3132.2,0.18101613]
[1763487057535,0.4706,3132.8,3132.3,0.405504]
[1763487059927,0.196,3132.9,3132.3,0.405504]
[1763487060764,0.6666,3132.9,3132.3,0.405504]
[1763487062165,0.196,3132.9,3132.3,0.405504]
[1763487062330,0.6666,3132.9,3132.3,0.405504]
[1763487062982,0.4816,3132.4,3131.1,0.482]
[1763487063224,0.4816,3132.3,3131.1,0.482]
[1763487063533,0.4706,3132.2,3131.2,0.405504]
[1763487063764,0.4706,3132.2,3131.2,3.23349664]
[1763487064480,0.4706,3132.2,3131.4,0.405504]
[1763487064853,0.196,3132.9,3132.2,0.405504]
[1763487065070,0.196,3132.9,3131.3,7.10950325]
[1763487065071,0.4816,3132.3,3131.4,2.82799264]
[1763487065232,0.6756,3131.7,3131.6,0.28389926]
[1763487065586,0.4706,3132.7,3131.6,0.001]
[1763487065763,0.4706,3132.8,3131.6,0.001]
[1763487066934,0.4599,3131.7,3131.6,0.001]
[1763487067144,0.6545,3131.7,3131.6,0.001]
[1763487067345,1.1533,3131.7,3131.6,0.001]
[1763487070844,1.04155032,3131.7,3131.6,0.001]
[1763487072789,0.9587,3131.6,3131.0,0.001]
[1763487073084,0.4988,3131.6,3131.2,0.001]
[1763487073380,0.4988,3131.5,3131.2,0.001]
[1763487073679,0.4988,3131.5,3131.0,0.001]
[1763487073680,0.4599,3131.3,3131.0,0.001]
[1763487073886,0.2679,3131.1,3131.0,0.001]
[1763487074477,0.7667,3131.1,3131.0,0.001]
[1763487078370,0.7667,3131.1,3129.6,0.003]
[1763487078371,0.6545,3130.8,3129.6,0.003]
[1763487078678,0.6545,3129.7,3129.6,0.003]
[1763487079078,1.1533,3129.7,3129.6,0.003]
[1763487080368,0.1946,3130.8,3129.6,0.003]
[1763487080369,0.1976,3130.0,3129.6,0.003]
[1763487080572,0.4701,3130.5,3129.6,0.03495296]
[1763487080767,0.4701,3130.5,3129.6,0.003]
[1763487081004,0.1946,3130.8,3129.6,0.003]
[1763487081168,0.1946,3130.8,3129.8,0.405504]
[1763487081571,0.4701,3130.7,3129.8,0.405504]
[1763487081905,0.4701,3130.7,3129.6,0.003]
[1763487082530,0.4701,3130.7,3129.6,1.34179264]
[1763487082829,0.4701,3130.7,3129.8,0.405504]
[1763487083018,0.1946,3130.8,3129.7,0.4318]
[1763487083216,0.6647,3130.8,3129.7,0.4318]
[1763487083612,0.4701,3130.7,3129.6,0.003]
[1763487085326,0.4701,3130.7,3129.6,0.4348]
[1763487085527,0.4701,3130.7,3129.7,0.405504]
[1763487086727,0.4701,3130.7,3129.6,0.003]
[1763487086728,0.496,3129.8,3129.6,0.003]
[1763487086912,0.4701,3130.7,3129.6,0.003]
[1763487086913,0.496,3129.7,3129.6,0.003]
[1763487087306,0.9661,3129.7,3129.6,0.003]
[1763487087733,0.9661,3129.7,3128.6,0.09383496]
[1763487088037,0.4701,3129.6,3128.6,0.09383496]
[1763487088537,0.5621,3128.7,3128.6,0.09383496]
[1763487089036,0.1976,3128.7,3128.6,0.09383496]
[1763487089224,0.1976,3130.0,3128.6,7.5331225]
[1763487089225,0.6677,3130.0,3128.6,7.5331225]
[1763487089549,0.6677,3130.0,3129.0,0.405504]
[1763487089760,0.6677,3130.0,3128.8,0.405504]
[1763487089761,0.496,3129.1,3128.8,0.405504]
[1763487089928,0.4701,3129.9,3128.6,0.09383496]
[1763487090260,0.4701,3129.8,3128.6,0.09383496]
[1763487091076,0.6936,3128.7,3128.6,0.09383496]
[1763487091433,1.1637,3128.7,3128.6,0.09383496]
[1763487091846,1.1637,3128.7,3128.6,0.09483496]
[1763487092572,0.1976,3129.3,3128.6,0.52963496]
[1763487092753,0.1976,3129.3,3128.6,0.09483496]
[1763487092942,0.4701,3129.2,3128.6,0.09483496]
[1763487093137,0.496,3128.7,3128.6,0.09483496]
[1763487093640,0.9661,3128.7,3128.6,0.09483496]
[1763487094929,0.496,3128.7,3128.6,0.09483496]
[1763487095243,0.1976,3129.3,3128.6,0.09483496]
[1763487095445,0.6677,3129.3,3128.6,0.09483496]
[1763487095762,0.496,3128.7,3128.6,0.09483496]
[1763487096269,0.979,3128.7,3128.6,0.09483496]
[1763487100922,0.1976,3129.3,3128.6,0.09483496]
[1763487100923,0.483,3129.1,3128.6,0.09483496]
[1763487101436,0.483,3129.6,3128.7,0.4348]
[1763487101662,0.1976,3130.0,3128.8,0.43746513]
[1763487101936,0.1976,3130.0,3128.8,0.405504]
[1763487102131,0.1976,3130.0,3129.0,0.405504]
[1763487102332,0.483,3130.3,3129.0,6.97519154]
[1763487102547,0.483,3130.3,3129.2,0.405504]
[1763487102949,0.483,3130.3,3129.2,0.840304]
[1763487105167,0.483,3130.3,3129.2,0.405504]
[1763487105375,0.483,3130.3,3129.1,0.85269915]
[1763487105673,0.483,3130.3,3128.6,1.0018276]
[1763487105891,0.483,3130.3,3128.7,0.4348]
[1763487106486,0.002,3130.7,3130.2,0.4348]
[1763487106687,0.002,3130.7,3130.6,0.4348]
[1763487107982,0.002,3130.7,3130.6,0.8696]
[1763487108584,0.002,3130.7,3130.6,0.4348]
[1763487110299,0.002,3130.7,3130.6,0.8696]
[1763487110469,0.002,3130.7,3130.6,1.275104]
[1763487110669,0.002,3130.7,3130.6,1.49331366]
[1763487112000,0.002,3130.7,3130.6,1.05851366]
[1763487112210,0.002,3130.7,3130.6,0.4348]
[1763487112592,0.002,3130.7,3130.4,0.405504]
[1763487113310,0.002,3130.7,3130.6,0.4348]
[1763487113507,0.002,3130.7,3130.6,0.8696]
[1763487114086,0.002,3130.7,3130.6,1.275104]
[1763487114289,0.002,3130.7,3130.6,2.35015744]
[1763487115015,0.002,3131.1,3130.7,0.405504]
[1763487115218,0.002,3131.1,3131.0,8.31698418]
[1763487115381,0.002,3131.1,3131.0,1.74729664]
[1763487115931,0.002,3131.1,3130.7,0.405504]
[1763487116211,0.002,3131.1,3131.0,0.4348]
[1763487116416,0.002,3131.1,3130.7,0.405504]
[1763487116708,0.002,3131.1,3130.7,0.840304]
[1763487116878,0.002,3131.1,3131.0,0.840304]
[1763487117513,0.002,3131.1,3131.0,1.275104]
[1763487117678,0.002,3131.1,3131.0,8.75178418]
[1763487120103,0.002,3131.1,3131.0,8.31698418]
[1763487120303,0.4718,3131.1,3130.8,0.19153574]
[1763487120530,0.4718,3131.1,3130.2,6.70458754]
[1763487120531,0.5794,3130.9,3130.2,0.1349]
[1763487120738,0.5794,3130.9,3130.0,0.1349]
[1763487120739,0.469,3130.7,3130.0,0.1349]
[1763487121136,0.002,3131.1,3130.6,0.4348]
[1763487121333,0.002,3131.1,3130.0,0.1349]
[1763487121334,0.483,3131.0,3130.0,0.1349]
[1763487121845,0.193,3130.9,3130.0,0.1349]
[1763487122308,0.483,3130.8,3130.0,0.1349]
[1763487122735,0.483,3130.8,3130.1,0.405504]
[1763487123005,0.4698,3130.1,3129.2,0.4348]
[1763487123208,0.4698,3130.1,3128.9,6.56968754]
[1763487123404,0.4698,3130.1,3129.1,0.405504]
[1763487123629,0.4698,3130.1,3129.0,2.01225139]
[1763487123630,0.9528,3130.1,3129.0,2.01225139]
[1763487124044,0.483,3130.0,3129.0,0.67045875]
[1763487124411,0.193,3129.9,3128.8,0.5697]
[1763487125013,0.193,3130.1,3129.0,0.90699264]
[1763487125214,0.483,3130.4,3129.0,0.90699264]
[1763487125215,0.193,3130.9,3130.0,0.405504]
[1763487125415,0.483,3130.8,3130.0,0.405504]
[1763487125713,0.4698,3130.1,3129.6,0.405504]
[1763487126045,0.9528,3130.1,3129.0,6.56968754]
[1763487126243,0.9528,3130.1,3129.1,0.65696875]
[1763487126452,0.4698,3130.1,3129.1,0.65696875]
[1763487126652,0.4977,3130.0,3129.1,0.65696875]
[1763487126861,0.4977,3130.0,3128.8,0.1349]
[1763487127157,0.1896,3129.9,3128.6,0.09483496]
[1763487127373,0.1896,3129.9,3128.7,0.405504]
[1763487127578,0.4977,3129.8,3128.6,0.09483496]
[1763487127787,0.4977,3129.8,3128.7,0.405504]
[1763487129280,0.4977,3130.7,3129.7,0.5697]
[1763487129442,0.4977,3130.7,3129.8,0.840304]
[1763487129834,0.002,3130.7,3129.8,0.840304]
[1763487130249,0.002,3130.7,3130.0,0.405504]
[1763487130440,0.002,3130.7,3130.2,0.405504]
[1763487130843,0.002,3130.7,3130.0,0.405504]
[1763487131283,0.002,3130.7,3130.6,0.840304]
[1763487132143,0.002,3131.1,3130.6,0.840304]
[1763487132144,0.002,3131.1,3130.7,0.405504]
[1763487132344,0.002,3131.1,3131.0,7.91148018]
[1763487132856,0.002,3131.1,3131.0,8.34628018]
[1763487133562,0.002,3131.1,3131.0,1.31249664]
[1763487134542,0.002,3131.1,3131.0,0.405504]
[1763487135179,0.002,3131.1,3130.0,6.56968754]
[1763487135180,0.99,3131.1,3130.0,6.56968754]
[1763487135379,0.4977,3131.0,3130.1,0.65696875]
[1763487135592,0.1896,3130.9,3130.1,0.65696875]
[1763487136006,0.4977,3130.8,3129.5,7.00448754]
[1763487136572,0.4977,3130.8,3129.7,0.5697]
[1763487136774,0.002,3131.1,3130.1,1.31249664]
[1763487137518,0.002,3131.1,3129.7,0.1349]
[1763487137519,0.002,3131.1,3130.6,1.31249664]
[1763487137681,0.002,3131.1,3130.8,0.405504]
[1763487138069,0.002,3131.1,3130.7,0.78821842]
[1763487138296,0.002,3131.1,3130.4,0.405504]
[1763487139125,0.002,3131.1,3130.1,0.90699264]
[1763487139313,0.4977,3131.0,3130.2,0.405504]
[1763487139611,0.4977,3131.0,3129.7,6.70458754]
[1763487139818,0.1896,3130.9,3129.7,0.1349]
[1763487140272,0.6873,3130.9,3129.7,0.5697]
[1763487140473,0.1896,3130.9,3129.9,0.90699264]
[1763487140673,0.002,3131.1,3130.1,0.405504]
[1763487140908,0.4818,3131.1,3130.1,0.405504]
[1763487141780,0.4818,3131.1,3129.8,0.405504]
[1763487141980,0.4818,3131.1,3130.0,0.405504]
[1763487142446,0.4818,3131.1,3129.2,6.56968754]
[1763487142602,0.4818,3131.1,3129.4,0.405504]
[1763487143338,0.4818,3131.1,3129.3,0.65696875]
[1763487143547,0.4818,3131.1,3129.0,7.00448754]
[1763487143843,0.4818,3131.1,3129.1,0.840304]
[1763487144051,0.4818,3131.1,3129.1,1.74729664]
[1763487144355,0.4818,3131.1,3129.1,1.31249664]
[1763487144496,0.4818,3131.1,3129.6,1.31249664]
[1763487144703,0.4818,3131.1,3129.8,0.405504]
[1763487146495,0.002,3131.1,3130.1,0.90699264]
[1763487146708,0.002,3131.1,3130.2,0.975204]
[1763487147795,0.002,3131.1,3130.2,0.540404]
[1763487148001,0.4798,3131.0,3130.2,0.540404]
[1763487148197,0.4798,3131.0,3130.4,0.405504]
[1763487148443,0.1917,3130.9,3130.4,0.405504]
[1763487149007,0.1917,3130.9,3130.1,0.405504]
[1763487149702,0.002,3131.1,3130.9,0.405504]
[1763487149935,0.002,3131.1,3130.3,0.90699264]
[1763487150140,0.4516,3130.9,3130.4,0.405504]
[1763487150442,0.4516,3130.9,3129.7,0.4348]
[1763487150624,0.6715,3130.8,3130.1,0.405504]
[1763487150949,0.6715,3130.8,3129.4,6.71299373]
[1763487150950,0.4123,3130.1,3129.4,6.71299373]
[1763487151145,0.4123,3130.1,3129.3,0.4348]
[1763487151545,0.4798,3130.4,3129.4,0.405504]
[1763487151953,0.6715,3130.8,3129.5,0.4348]
[1763487152426,0.4798,3130.7,3129.0,0.406504]
[1763487152626,0.4798,3130.7,3129.3,0.405504]
[1763487152831,0.1917,3130.8,3129.5,1.31249664]
[1763487153146,0.6715,3130.8,3129.7,0.405504]
[1763487153536,0.4798,3130.7,3129.7,0.405504]
[1763487154139,0.1917,3130.8,3129.8,0.4348]
[1763487155051,0.6715,3130.8,3129.8,0.4348]
[1763487155553,0.6715,3130.8,3129.7,0.405504]
[1763487155554,0.4798,3130.7,3129.7,0.405504]
[1763487156251,0.1917,3130.8,3129.6,0.80254904]
[1763487156252,0.1917,3130.8,3129.9,0.405504]
[1763487156474,0.1917,3130.8,3129.8,0.4348]
[1763487156625,0.1917,3130.8,3129.9,0.405504]
[1763487157025,0.1917,3130.8,3130.0,0.405504]
[1763487157449,0.1917,3130.8,3129.6,0.80254904]
[1763487157450,0.002,3131.1,3130.7,0.4348]
[1763487157763,0.002,3131.1,3130.8,0.405504]
[1763487158060,0.002,3131.1,3130.3,0.405504]
[1763487158233,0.002,3131.1,3130.3,0.840304]
[1763487158435,0.002,3131.1,3130.5,0.405504]
[1763487159468,0.002,3131.1,3130.5,0.790304]
[1763487159634,0.002,3131.1,3130.5,0.355504]
[1763487159822,0.002,3131.1,3130.4,0.17472966]
[1763487160025,0.002,3131.1,3130.4,0.60952966]
[1763487160763,0.002,3131.1,3130.4,0.17472966]
[1763487160963,0.002,3131.1,3130.2,0.90699264]
[1763487160964,0.002,3131.1,3130.5,0.03194377]
[1763487161192,0.002,3131.1,3131.0,0.4348]
[1763487161685,0.002,3131.1,3131.0,0.840304]
[1763487162039,0.002,3131.4,3131.0,1.275104]
[1763487162348,0.002,3131.5,3131.4,0.405504]
[1763487162543,0.1918,3132.9,3131.4,1.44983366]
[1763487162746,0.1918,3132.9,3131.9,0.840304]
[1763487163388,0.1918,3132.9,3131.9,1.275104]
[1763487165374,0.4597,3132.0,3131.4,0.17472966]
[1763487165564,0.1898,3131.9,3131.0,6.71299373]
[1763487165749,0.1898,3131.9,3131.1,0.90699264]
[1763487165951,0.1898,3131.9,3130.3,0.4348]
[1763487165952,0.6427,3131.9,3130.3,0.4348]
[1763487166346,0.4529,3131.8,3130.3,0.4348]
[1763487167599,0.4529,3131.8,3130.6,0.001]
[1763487169948,0.1898,3130.7,3130.6,0.001]
[1763487170183,0.1898,3131.1,3130.6,0.001]
[1763487170997,0.4529,3131.3,3130.6,0.001]
[1763487171155,0.1898,3131.9,3130.6,0.001]
[1763487171476,0.4529,3131.6,3130.6,0.001]
[1763487173666,0.1898,3130.7,3130.6,0.001]
[1763487173893,0.4529,3131.6,3130.6,0.001]
[1763487174182,0.1898,3131.9,3130.6,0.001]
[1763487174183,0.4529,3131.5,3130.6,0.001]
[1763487176777,0.6475,3130.7,3130.6,0.001]
[1763487177284,1.1004,3130.7,3130.6,0.001]
[1763487178893,1.1004,3130.7,3130.3,0.001]
[1763487179105,0.441,3130.4,3130.3,0.001]
[1763487179517,0.8939,3130.4,3130.3,0.001]
[1763487180376,0.8939,3130.4,3130.0,0.001]
[1763487180601,0.4575,3130.1,3130.0,0.001]
[1763487180806,0.9104,3130.1,3130.0,0.001]
[1763487182679,0.4575,3130.1,3130.0,0.001]
[1763487182886,0.4575,3130.1,3129.0,0.001]
[1763487182887,0.9104,3130.1,3129.0,0.001]
[1763487183081,0.4529,3130.1,3129.0,0.001]
[1763487183402,0.4529,3130.0,3129.0,0.001]
[1763487183606,0.1898,3129.9,3129.0,0.001]
[1763487183779,0.4577,3129.1,3129.0,0.001]
[1763487184200,0.9106,3129.1,3129.0,0.001]
[1763487186183,0.9106,3129.1,3128.5,0.004]
[1763487186416,0.1898,3129.9,3128.5,0.004]
[1763487186417,0.6256,3128.7,3128.5,0.004]
[1763487187013,0.1858,3129.1,3128.5,0.004]
[1763487187320,0.4974,3128.7,3128.5,0.004]
[1763487187923,0.4544,3129.0,3128.5,0.004]
[1763487188118,0.4544,3129.7,3128.7,0.405504]
[1763487188317,0.4544,3129.7,3128.9,0.4358]
[1763487189129,0.4544,3129.7,3128.5,0.004]
[1763487189130,0.4974,3129.0,3128.5,0.004]
[1763487189606,0.1898,3129.9,3128.5,0.004]
[1763487189607,0.4031,3128.7,3128.5,0.004]
[1763487189994,0.8575,3128.7,3128.5,0.004]
[1763487190194,0.4031,3128.7,3128.5,0.004]
[1763487190518,0.8575,3128.7,3128.5,0.004]
[1763487191214,0.4031,3128.7,3128.5,0.004]
[1763487191394,0.8575,3128.7,3128.5,0.004]
[1763487191594,0.1898,3129.9,3128.5,0.004]
[1763487191595,0.8569,3128.6,3128.5,0.004]
[1763487195420,0.4025,3128.6,3128.5,0.004]
[1763487195622,0.8569,3128.6,3128.5,0.004]
[1763487197722,0.4025,3128.6,3128.5,0.004]
[1763487198023,0.4544,3129.4,3128.5,0.9115]
[1763487198200,0.4544,3129.4,3128.5,0.004]
[1763487198998,0.4974,3128.6,3128.5,0.004]
[1763487199200,0.4544,3129.4,3128.5,0.004]
[1763487199531,0.4974,3128.6,3128.5,0.004]
[1763487199742,0.4544,3129.4,3128.5,0.004]
[1763487200243,0.4544,3129.8,3128.7,0.405504]
[1763487200694,0.4544,3129.8,3128.7,0.861204]
[1763487200905,0.4544,3129.8,3128.5,0.004]
[1763487201200,0.4544,3129.8,3128.7,0.405504]
[1763487201859,0.002,3129.4,3128.7,0.405504]
[1763487202421,0.002,3129.4,3128.5,0.004]
[1763487202422,0.4819,3128.8,3128.5,0.004]
[1763487202626,0.4852,3129.4,3128.5,0.004]
[1763487202627,0.2959,3128.7,3128.5,0.004]
[1763487203441,0.7791,3128.7,3128.5,0.004]
[1763487203960,0.9633,3128.6,3128.5,0.004]
[1763487206551,1.25578355,3128.6,3128.5,0.004]
[1763487206752,1.92869925,3128.6,3128.5,0.004]
[1763487206991,1.44865348,3128.6,3128.5,0.004]
[1763487207677,1.15616993,3128.6,3128.5,0.004]
[1763487207880,1.25586664,3128.6,3128.5,0.004]
[1763487208199,1.25586664,3128.6,3125.5,0.16636829]
[1763487208200,0.1873,3127.8,3125.5,0.16636829]
[1763487208351,0.1873,3127.8,3126.1,0.1409]
[1763487208352,0.2831,3127.3,3126.1,0.1409]
[1763487208547,0.29256764,3127.6,3126.3,0.4557]
[1763487208774,0.29256764,3127.6,3126.1,1.04789264]
[1763487208775,0.4832,3127.7,3126.4,0.405504]
[1763487208945,0.4832,3127.7,3126.3,0.4557]
[1763487209159,0.1873,3127.8,3126.7,0.4587]
[1763487209488,1.12233597,3128.9,3126.8,0.405504]
[1763487209489,0.4832,3127.9,3126.8,0.405504]
[1763487209648,0.4832,3127.9,3126.7,0.003]
[1763487210104,0.77577198,3127.9,3126.7,0.003]
[1763487210273,0.29257198,3127.8,3126.7,0.003]
[1763487210472,0.4832,3127.8,3126.7,0.003]
[1763487212152,0.29257198,3127.9,3126.9,0.405504]
[1763487212352,0.29257198,3127.9,3126.8,0.4557]
[1763487212353,0.1873,3128.0,3127.1,0.405504]
[1763487212689,0.1873,3128.0,3127.2,0.1367]
[1763487213090,0.6705,3128.0,3127.2,0.1367]
[1763487213389,0.6705,3128.0,3127.1,0.1367]
[1763487213588,0.4832,3127.9,3127.1,0.1367]
[1763487214581,0.4832,3127.9,3126.7,0.003]
[1763487214896,0.1873,3128.0,3126.9,0.405504]
[1763487215082,0.1873,3128.3,3126.9,0.405504]
[1763487215283,0.1873,3128.6,3127.1,0.405504]
[1763487215602,0.1873,3129.0,3127.4,1.31249664]
[1763487216100,0.6854,3129.0,3127.6,0.405504]
[1763487216475,0.4981,3128.9,3127.6,0.405504]
[1763487216863,0.4981,3128.9,3127.1,0.1367]
[1763487216864,0.78976037,3128.9,3127.2,0.4526]
[1763487217065,0.29166037,3128.8,3127.3,0.405504]
[1763487217269,0.4981,3128.8,3127.3,0.405504]
[1763487217466,0.4981,3128.8,3127.2,0.405504]
[1763487217997,0.4981,3128.8,3127.2,1.03200802]
[1763487218199,0.4981,3128.8,3127.1,0.1367]
[1763487218200,0.78976037,3128.8,3127.1,0.1367]
[1763487218365,0.29166037,3128.7,3127.1,0.1367]
[1763487218565,0.29166037,3128.6,3126.6,0.4526]
[1763487218800,0.29166037,3128.5,3126.6,0.4526]
[1763487218998,0.9507,3128.7,3126.6,0.4526]
[1763487218999,1.46094289,3128.6,3126.6,0.4526]
[1763487219186,0.57371392,3128.5,3126.7,0.4556]
[1763487219387,1.07181392,3128.5,3126.7,0.4556]
[1763487219593,0.29166037,3128.4,3126.8,0.405504]
[1763487219788,0.78976037,3128.4,3126.8,0.405504]
[1763487219990,0.96406001,3128.4,3127.0,0.405504]
[1763487220300,0.29166037,3128.3,3127.0,0.405504]
[1763487220505,0.78976037,3128.3,3127.1,0.1367]
[1763487220699,0.4981,3128.3,3127.1,0.1367]
[1763487220904,0.4981,3128.6,3127.2,0.858104]
[1763487221103,0.4981,3128.6,3127.4,0.405504]
[1763487221516,0.4981,3128.6,3127.5,0.4526]
[1763487221814,0.4981,3128.6,3127.6,0.405504]
[1763487221982,0.4981,3128.6,3127.2,0.405504]
[1763487222480,0.29170615,3128.9,3127.2,0.405504]
[1763487222676,0.4981,3128.8,3127.3,0.4526]
[1763487222913,0.4981,3128.8,3127.1,0.5893]
[1763487223283,0.4981,3128.8,3127.2,0.858104]
[1763487223485,0.84175197,3129.2,3127.2,0.858104]
[1763487223486,0.4981,3129.2,3127.6,1.31249664]
[1763487223680,0.1966,3128.9,3127.8,0.405504]
[1763487224084,0.1966,3128.9,3127.8,0.858104]
[1763487224386,0.1966,3128.9,3127.7,0.78936545]
[1763487224387,0.002,3129.4,3128.0,0.405504]
[1763487224915,0.002,3129.4,3128.1,1.48999264]
[1763487225221,0.002,3129.4,3128.2,0.405504]
[1763487225417,0.002,3129.4,3128.3,0.64214966]
[1763487225799,0.002,3129.4,3128.5,0.405504]
[1763487226315,0.002,3129.4,3128.5,0.858104]
[1763487226533,0.5001,3129.4,3128.3,0.18954966]
[1763487226701,0.5001,3129.4,3127.6,0.1304]
[1763487226906,0.5001,3129.4,3127.9,0.4526]
[1763487227504,0.002,3129.4,3128.4,1.31249664]
[1763487227824,0.002,3129.4,3129.3,0.5883]
[1763487228009,0.002,3129.4,3128.6,0.405504]
[1763487228620,0.002,3129.4,3128.8,0.405504]
[1763487228826,0.002,3129.4,3128.5,0.1367]
[1763487228827,0.002,3129.4,3128.6,0.405504]
[1763487229193,0.002,3129.4,3128.6,0.858104]
[1763487230313,0.002,3129.4,3128.8,0.405504]
[1763487230515,0.002,3129.4,3129.3,0.4516]
[1763487231507,0.002,3129.4,3129.3,1.309704]
[1763487233598,0.002,3129.4,3128.7,0.4526]
[1763487233798,0.002,3129.4,3128.8,0.4526]
[1763487234331,0.002,3129.4,3128.5,0.1367]
[1763487234694,0.4981,3129.3,3128.4,0.1367]
[1763487235538,0.002,3129.4,3128.4,0.1367]
[1763487235706,0.002,3129.4,3128.5,0.405504]
[1763487236111,0.5001,3129.4,3128.5,0.405504]
[1763487238227,0.002,3129.4,3128.5,0.858104]
[1763487238428,0.002,3129.4,3128.5,0.405504]
[1763487238735,0.4981,3129.3,3128.5,0.405504]
[1763487239032,0.4981,3129.3,3128.1,0.1367]
[1763487239603,0.4981,3129.3,3128.1,3.9967]
[1763487239803,0.4981,3129.3,3127.9,0.90699264]
[1763487240023,0.4981,3129.3,3127.8,3.86]
[1763487240222,0.4981,3129.3,3127.4,7.03375785]
[1763487240422,0.4981,3129.3,3126.5,0.001]
[1763487240423,0.4981,3129.3,3127.3,0.1304]
[1763487240630,0.4981,3129.3,3127.7,0.405504]
[1763487240831,0.4981,3129.3,3127.4,0.405504]
[1763487241219,0.4981,3129.3,3127.4,0.858104]
[1763487241727,0.4981,3129.3,3127.4,0.405504]
[1763487242642,0.4981,3129.3,3127.6,0.405504]
[1763487242943,0.4981,3129.3,3127.7,0.17970711]
[1763487243734,0.4981,3129.3,3127.6,0.858104]
[1763487244308,0.4981,3129.3,3127.6,0.405504]
[1763487244937,0.6766,3127.7,3127.1,0.001]
[1763487245148,0.245,3127.2,3127.1,0.001]
[1763487245504,0.7431,3127.2,3127.1,0.001]
[1763487245710,0.245,3127.2,3127.1,0.001]
[1763487246252,0.4981,3127.5,3127.1,0.001]
[1763487247515,0.1966,3127.7,3127.1,0.001]
[1763487247930,0.6765,3127.7,3127.1,0.001]
[1763487248436,0.4799,3127.6,3127.1,0.001]
[1763487249342,0.1966,3127.7,3127.1,0.1377]
[1763487250157,0.4799,3127.9,3127.1,0.1377]
[1763487250158,0.6717,3127.9,3127.1,0.1377]
[1763487250452,0.4788,3127.2,3127.1,0.001]
[1763487250952,0.9587,3127.2,3127.1,0.001]
[1763487252648,0.4799,3127.7,3127.1,0.001]
[1763487253845,0.4788,3127.2,3127.1,0.001]
[1763487254047,0.9587,3127.2,3127.1,0.001]
[1763487255641,0.4788,3127.2,3127.1,0.001]
[1763487255829,0.4799,3127.6,3127.1,0.001]
[1763487256032,0.4788,3127.2,3127.1,0.001]
[1763487256235,0.002,3127.7,3127.1,0.001]
[1763487256236,0.002,3127.7,3127.1,0.1377]
[1763487256538,0.002,3127.7,3127.1,1.0717]
[1763487256724,0.002,3127.7,3127.1,0.1377]
[1763487257315,0.002,3127.7,3127.2,0.405504]
[1763487257515,0.002,3127.7,3127.2,0.855804]
[1763487258048,0.002,3127.7,3127.1,0.1377]
[1763487258247,0.002,3127.7,3127.2,0.855804]
[1763487258414,0.002,3127.7,3127.2,0.4503]
[1763487258620,0.4799,3127.6,3127.1,0.001]
[1763487258914,0.002,3127.7,3127.2,0.1367]
[1763487259410,0.002,3127.7,3127.1,0.001]
[1763487259615,0.4819,3127.7,3127.1,0.001]
[1763487260731,0.002,3127.7,3127.1,0.1377]
[1763487262921,0.002,3127.7,3127.6,0.4773]
[1763487263239,0.002,3127.7,3127.4,0.405504]
[1763487263439,0.002,3127.7,3127.6,0.4773]
[1763487263747,0.002,3127.7,3127.2,0.90699264]
[1763487263974,0.002,3127.7,3127.3,1.16808905]
[1763487264162,0.002,3127.7,3127.6,0.4773]
[1763487264319,0.002,3127.7,3127.3,0.76258505]
[1763487264522,0.002,3127.7,3127.1,0.1377]
[1763487264523,0.002,3127.7,3127.6,0.4773]
[1763487264971,0.9995,3127.7,3127.1,0.001]
[1763487265147,0.2257,3127.5,3127.1,0.001]
[1763487265457,0.5019,3127.7,3127.1,0.001]
[1763487265458,0.4976,3127.2,3127.1,0.001]
[1763487265823,0.9975,3127.2,3127.1,0.001]
[1763487266234,0.002,3127.7,3127.1,0.001]
[1763487266834,0.002,3127.7,3127.1,0.1377]
[1763487267042,0.002,3127.7,3127.1,0.001]
[1763487267765,0.5019,3127.7,3127.1,0.001]
[1763487267969,0.4976,3127.2,3127.1,0.001]
[1763487268127,0.5019,3127.7,3127.1,0.001]
[1763487268561,0.4976,3127.2,3127.1,0.001]
[1763487269438,0.9975,3127.2,3127.1,0.001]
[1763487270764,0.4999,3127.6,3127.1,0.001]
[1763487271946,0.4976,3127.2,3127.1,0.001]
[1763487272451,0.4999,3127.6,3127.1,0.001]
[1763487272629,0.002,3127.7,3127.1,0.001]
[1763487273559,0.002,3127.7,3127.2,0.1367]
[1763487273948,0.002,3127.7,3127.2,0.5911]
[1763487274530,0.002,3127.7,3127.2,0.1367]
[1763487274728,0.002,3127.7,3127.3,0.4544]
[1763487274940,0.002,3127.7,3127.2,0.1367]
[1763487275145,0.002,3127.7,3127.3,0.4544]
[1763487275778,0.002,3127.7,3127.6,0.4773]
[1763487276175,0.002,3127.7,3127.2,0.1367]
[1763487276477,0.002,3127.7,3127.2,0.6053]
[1763487277090,0.002,3127.7,3127.3,0.4686]
[1763487277242,0.002,3127.7,3127.2,0.1367]
[1763487277643,0.002,3127.7,3127.3,0.4686]